bitfinex/quotes_ETHUSD_20251006
["timestamp","ask_amount","ask_price","bid_price","bid_amount"]
[1759733554185,0.46746835,4556.0,4554.7,0.01364392]
[1759733554186,2.19548608,4554.8,4554.7,0.01364392]
[1759733554383,2.487,4554.9,4554.7,0.01364392]
[1759733554681,2.487,4554.9,4554.8,0.4456]
[1759733554682,4.68243788,4554.9,4554.8,0.4456]
[1759733555402,2.488,4554.9,4554.8,0.4456]
[1759733556298,4.68343788,4554.9,4554.8,0.4456]
[1759733556501,0.68787393,4554.9,4554.7,0.01364392]
[1759733556705,2.488,4554.8,4553.5,0.29382815]
[1759733556891,0.6588476,4554.9,4553.7,2.19601392]
[1759733557213,2.19534814,4555.1,4553.8,5.33537666]
[1759733557414,4.68340286,4555.0,4553.9,2.4]
[1759733557619,2.19547964,4554.9,4554.0,0.4456]
[1759733557924,2.488,4554.8,4554.0,0.9791396]
[1759733558092,2.488,4554.8,4554.0,0.5335396]
[1759733558277,4.68349361,4554.8,4554.1,0.4456]
[1759733558471,2.19557894,4554.7,4554.1,0.4456]
[1759733558702,2.488,4554.6,4554.1,0.4456]
[1759733558898,2.488,4554.5,4554.1,0.4456]
[1759733559572,2.488,4554.6,4554.1,0.4456]
[1759733559777,0.1096,4554.2,4554.1,0.4456]
[1759733560893,0.1096,4554.2,4554.1,17.3456]
[1759733561709,0.1096,4554.2,4554.1,21.49557502]
[1759733562711,0.1096,4554.2,4554.1,19.29975148]
[1759733563091,0.1096,4554.2,4554.1,21.49557502]
[1759733563781,0.1096,4554.2,4554.1,19.29975148]
[1759733564406,0.1096,4554.2,4554.1,21.49557502]
[1759733564779,0.1096,4554.2,4554.1,19.29975148]
[1759733565118,0.1096,4554.2,4554.1,21.49557502]
[1759733565290,0.6587608,4555.8,4554.2,4.59577532]
[1759733565291,0.1096,4554.6,4554.2,4.59577532]
[1759733565480,0.1096,4554.6,4554.4,4.5956789]
[1759733565680,0.1096,4554.6,4554.5,2.21758699]
[1759733565988,0.1096,4554.6,4554.5,14.9675563]
[1759733566197,0.1096,4554.6,4554.5,17.14123069]
[1759733566987,0.1096,4554.6,4554.5,19.54123069]
[1759733567216,0.1096,4554.6,4554.5,21.7097225]
[1759733567945,0.1096,4554.6,4554.5,19.51409181]
[1759733568088,0.1096,4554.6,4554.5,2.4]
[1759733568291,0.1096,4554.6,4554.5,2.8456]
[1759733574029,0.1096,4554.6,4554.5,5.04123069]
[1759733574333,0.1096,4555.0,4554.5,0.4456]
[1759733574628,0.1096,4554.6,4554.5,2.19562952]
[1759733574932,0.1096,4554.6,4554.5,2.64122952]
[1759733576899,0.1096,4554.6,4554.5,5.04122952]
[1759733577720,0.1096,4554.6,4554.5,6.09251074]
[1759733577911,0.1096,4554.6,4554.5,8.57851074]
[1759733578227,0.1096,4554.6,4554.5,23.07851074]
[1759733578427,0.1096,4554.6,4554.5,19.54122952]
[1759733580317,0.31505107,4554.6,4554.5,19.54122952]
[1759733580836,0.31505105,4554.6,4554.5,19.54122952]
[1759733581835,0.20545105,4554.6,4554.5,19.54122952]
[1759733582139,0.20545105,4554.6,4554.5,20.19987751]
[1759733582318,0.1096,4555.0,4554.6,4.59556472]
[1759733582639,0.20547745,4554.9,4554.6,7.55346472]
[1759733582807,0.20547745,4554.8,4554.7,0.4729]
[1759733583018,0.20547745,4554.8,4554.7,14.9729]
[1759733583323,0.20547745,4554.8,4554.7,17.3729]
[1759733584518,0.20547745,4554.8,4554.7,19.56843428]
[1759733584716,0.20547745,4554.8,4554.7,17.3729]
[1759733585121,0.20547745,4554.8,4554.7,16.9]
[1759733585332,0.20547745,4554.8,4554.7,19.09553428]
[1759733585743,0.20547745,4554.8,4554.7,19.56843428]
[1759733585940,0.20547614,4554.8,4554.7,17.3729]
[1759733586758,0.20547614,4554.8,4554.7,19.56843428]
[1759733587229,0.20547614,4554.8,4554.7,17.3729]
[1759733587852,0.20547614,4554.8,4554.7,16.9]
[1759733588024,0.20547614,4554.8,4554.7,17.3729]
[1759733588426,0.20547614,4554.8,4554.7,24.22192609]
[1759733588654,0.1096,4555.0,4554.9,2.19543788]
[1759733588851,0.1096,4555.0,4554.9,2.21739225]
[1759733589056,0.1096,4555.0,4554.9,5.09029225]
[1759733589273,0.1096,4555.0,4554.9,7.55333788]
[1759733589551,0.1096,4555.0,4554.9,5.3579]
[1759733591324,0.1096,4555.0,4554.9,7.55333788]
[1759733591537,0.1096,4555.0,4554.9,22.05333788]
[1759733596345,0.20543028,4555.6,4555.0,4.59537531]
[1759733596548,0.1096,4555.4,4555.1,2.484]
[1759733596752,0.1096,4555.4,4555.1,2.9569]
[1759733597144,0.1096,4555.4,4555.2,0.76672815]
[1759733597347,0.1096,4555.4,4555.2,3.16672815]
[1759733597527,0.1096,4555.4,4555.3,19.09524509]
[1759733597731,0.1096,4555.4,4555.3,19.56814509]
[1759733600064,0.4425,4556.4,4555.4,4.5951969]
[1759733600246,0.1096,4555.7,4555.6,2.19510053]
[1759733600450,0.1096,4555.7,4555.6,2.66800053]
[1759733600652,0.1096,4555.7,4555.6,17.16800053]
[1759733601036,0.1096,4555.7,4555.6,14.9729]
[1759733601242,0.1096,4555.7,4555.6,17.16800053]
[1759733601438,0.1096,4555.7,4555.6,19.09510053]
[1759733601773,2.63707195,4556.7,4555.9,2.19494135]
[1759733601946,2.63707195,4556.7,4555.7,2.4]
[1759733601947,0.1096,4555.9,4555.7,2.4]
[1759733602152,0.4425,4556.9,4555.9,2.19495599]
[1759733602353,0.1096,4556.3,4556.0,4.67790144]
[1759733602550,0.1096,4556.3,4556.1,0.4729]
[1759733602753,0.1096,4556.7,4556.3,4.59476329]
[1759733602955,0.1096,4556.7,4556.5,2.19463167]
[1759733603470,0.1096,4556.7,4556.6,2.19461879]
[1759733603975,0.1096,4557.0,4556.6,3.24972815]
[1759733604149,0.1096,4557.0,4556.7,0.4729]
[1759733604354,0.1096,4557.0,4556.6,2.77682815]
[1759733604666,5.770293,4556.7,4556.6,5.17682815]
[1759733605071,5.770293,4556.7,4556.6,19.67682815]
[1759733605483,5.770293,4556.7,4556.6,19.383]
[1759733606173,5.770293,4556.7,4556.6,16.9]
[1759733606578,5.879893,4556.7,4556.6,16.9]
[1759733606773,5.879893,4556.7,4556.6,19.09461879]
[1759733607155,5.879893,4556.7,4556.6,16.9]
[1759733607474,5.879893,4556.7,4556.6,21.57761879]
[1759733608680,5.879893,4556.7,4556.6,19.383]
[1759733609199,5.879893,4556.7,4556.6,21.57761879]
[1759733609769,5.879893,4556.7,4556.6,19.383]
[1759733610367,5.879893,4556.7,4556.6,16.9]
[1759733612663,5.770293,4556.7,4556.6,51.78365362]
[1759733613385,5.770293,4556.7,4556.6,16.9]
[1759733613683,6.198293,4556.7,4556.6,16.9]
[1759733613982,6.198293,4556.7,4556.6,2.4]
[1759733614852,8.39286363,4556.7,4556.6,2.4]
[1759733616757,6.198293,4556.7,4555.8,0.001]
[1759733616954,2.19495599,4555.9,4555.8,0.001]
[1759733617149,4.67695599,4555.9,4555.8,0.001]
[1759733617383,5.12885599,4555.9,4555.8,0.001]
[1759733623403,5.23845599,4555.9,4555.8,0.001]
[1759733623699,5.98178891,4555.9,4555.8,0.001]
[1759733624473,5.98178891,4555.9,4554.5,0.001]
[1759733624474,0.6336,4555.8,4555.3,1e-08]
[1759733624770,2.1951969,4555.4,4555.3,1e-08]
[1759733624973,5.51549387,4555.4,4555.3,1e-08]
[1759733625201,5.96739387,4555.4,4555.3,1e-08]
[1759733625402,6.30754392,4555.4,4555.3,1e-08]
[1759733626698,6.30744161,4555.4,4555.3,1e-08]
[1759733626911,6.30844161,4555.4,4555.3,1e-08]
[1759733627275,5.47024695,4555.4,4555.3,1e-08]
[1759733628698,6.10384695,4555.4,4555.3,1e-08]
[1759733629103,0.34015005,4555.4,4555.3,1e-08]
[1759733629418,4.6781969,4555.4,4555.3,1e-08]
[1759733630428,2.1951969,4555.4,4555.3,1e-08]
[1759733630586,4.6781969,4555.4,4555.3,1e-08]
[1759733631090,2.1951969,4555.4,4555.3,1e-08]
[1759733631294,5.11722664,4555.4,4555.3,1e-08]
[1759733631490,6.20272664,4555.4,4555.3,1e-08]
[1759733633101,9.55919525,4555.4,4555.3,1e-08]
[1759733633306,9.5591601,4555.4,4555.3,1e-08]
[1759733634531,9.6687601,4555.4,4555.3,1e-08]
[1759733639324,7.1857601,4555.4,4555.3,1e-08]
[1759733639527,9.6687601,4555.4,4555.3,1e-08]
[1759733639895,6.51659632,4555.4,4555.3,1e-08]
[1759733640112,9.6687601,4555.4,4555.3,1e-08]
[1759733641494,9.6707601,4555.4,4555.3,1e-08]
[1759733641720,12.0707601,4555.4,4555.3,1e-08]
[1759733647455,12.0763601,4555.4,4555.3,1e-08]
[1759733648352,2.19611288,4553.5,4553.4,0.4666]
[1759733648522,4.67911288,4553.5,4553.4,0.4666]
[1759733649144,4.67911288,4553.5,4551.1,1.92375396]
[1759733649145,8.51882641,4553.5,4551.1,1.92375396]
[1759733649355,2.19649878,4552.7,4552.6,0.4666]
[1759733649651,4.67949878,4552.7,4552.6,0.4666]
[1759733650054,0.6336,4552.6,4551.2,0.1144879]
[1759733650354,0.6336,4552.2,4551.2,0.1144879]
[1759733650555,4.6797935,4552.1,4551.3,0.4666]
[1759733650760,2.19696199,4551.8,4551.3,0.4666]
[1759733651051,4.67996199,4551.8,4551.3,0.4666]
[1759733651948,2.1969964,4551.7,4551.3,0.4666]
[1759733652162,0.6336,4551.7,4551.2,0.1144879]
[1759733652326,0.6336,4551.7,4550.8,0.00230568]
[1759733652327,3.15216378,4553.4,4551.4,0.4666]
[1759733652534,0.20473867,4552.8,4551.5,2.4]
[1759733652838,2.68773867,4552.7,4551.7,2.19698009]
[1759733653045,2.68773867,4552.7,4551.8,0.4666]
[1759733653046,0.20471805,4552.6,4551.8,0.4666]
[1759733653250,4.68063641,4552.5,4551.8,0.4666]
[1759733653448,2.19665084,4552.4,4551.8,0.4666]
[1759733653657,0.6336,4553.6,4551.8,0.4666]
[1759733653862,0.6336,4553.0,4551.8,2.66351096]
[1759733654070,0.20466235,4552.9,4551.9,2.19687858]
[1759733654373,0.20466235,4552.8,4552.0,0.4666]
[1759733654558,2.68866235,4552.7,4552.0,0.4666]
[1759733654758,2.19647432,4552.8,4552.0,0.4666]
[1759733655069,0.43927982,4552.8,4552.1,2.19678207]
[1759733655258,2.484,4552.7,4552.2,0.4666]
[1759733655432,0.6336,4553.3,4552.2,0.4666]
[1759733655782,2.19481865,4556.2,4552.2,2.8666]
[1759733655783,0.20457723,4553.2,4552.2,2.8666]
[1759733656067,4.68033385,4553.1,4552.3,0.4666]
[1759733656283,1.115,4553.0,4552.3,0.4666]
[1759733656432,1.115,4553.0,4552.3,0.48856691]
[1759733656642,1.115,4553.0,4552.4,2.19664073]
[1759733656856,2.19627051,4553.2,4552.5,0.4666]
[1759733657059,2.19616522,4553.4,4552.5,0.4666]
[1759733657347,0.44258984,4554.1,4552.6,0.02196547]
[1759733657348,0.2045469,4553.3,4552.6,0.02196547]
[1759733657536,2.19593183,4553.9,4552.7,0.4666]
[1759733657732,0.7235345,4553.8,4552.8,0.0219645]
[1759733657927,2.62407001,4554.4,4552.9,0.4666]
[1759733658141,2.95092939,4554.3,4553.4,2.19615495]
[1759733658338,4.88431316,4554.2,4553.5,0.4666]
[1759733658560,0.20452239,4554.1,4553.5,0.4666]
[1759733658763,0.1096,4553.6,4553.5,2.66270946]
[1759733659263,0.1096,4553.6,4553.5,2.66271288]
[1759733659463,0.1096,4553.6,4553.5,0.4666]
[1759733661240,0.1096,4553.6,4553.5,2.8666]
[1759733661448,0.1096,4553.6,4553.5,0.4666]
[1759733662177,0.1096,4553.6,4553.5,2.8666]
[1759733662645,0.1096,4553.6,4553.5,5.06271288]
[1759733662843,0.1096,4553.6,4553.5,5.37097668]
[1759733663447,0.1096,4553.6,4553.5,6.37609311]
[1759733663649,0.1096,4553.6,4553.5,5.37097668]
[1759733663864,0.4575,4555.2,4553.5,5.37097668]
[1759733663865,0.20465434,4554.6,4554.0,2.1958495]
[1759733664068,2.19551026,4554.8,4554.1,0.4666]
[1759733664272,1.285,4555.0,4554.1,0.4666]
[1759733664273,2.19558572,4554.6,4554.1,0.4666]
[1759733664584,2.19558572,4554.6,4554.2,14.9666]
[1759733664889,2.19558572,4554.6,4554.3,0.4666]
[1759733665085,1.285,4555.0,4553.6,2.4]
[1759733665247,0.20465206,4554.9,4554.4,0.4666]
[1759733665446,2.68865206,4554.9,4554.4,0.4666]
[1759733665672,0.20465206,4554.8,4553.9,14.5]
[1759733665867,0.20465206,4554.8,4554.5,0.4666]
[1759733666177,0.20465206,4554.8,4554.6,0.4666]
[1759733666354,2.19544667,4554.9,4554.7,0.4666]
[1759733666552,0.20464415,4554.8,4554.1,12.19581497]
[1759733666753,0.20464415,4554.8,4554.1,10.0]
[1759733666965,2.40014184,4554.8,4554.1,10.0]
[1759733667160,2.485,4555.3,4554.2,0.4666]
[1759733667362,2.39992801,4555.2,4554.3,2.19568049]
[1759733667556,0.20463438,4555.1,4554.4,0.4666]
[1759733668061,0.20463438,4555.1,4554.4,2.66225857]
[1759733668262,0.20463438,4555.0,4554.5,0.4666]
[1759733668490,2.19723807,4555.4,4554.5,0.4666]
[1759733668648,2.68861833,4555.3,4554.5,2.66222692]
[1759733668854,0.20461833,4555.2,4554.6,0.4666]
[1759733669258,2.39994128,4555.2,4554.6,0.4666]
[1759733669461,0.002,4555.4,4554.6,0.4666]
[1759733670078,0.002,4555.4,4554.7,2.19552993]
[1759733670782,0.002,4555.4,4554.8,0.4666]
[1759733671391,2.19525591,4555.3,4554.8,0.4666]
[1759733671593,2.19525591,4555.3,4554.9,0.4666]
[1759733671892,2.19720152,4555.4,4555.0,0.4666]
[1759733672272,2.19526408,4555.3,4555.0,0.4666]
[1759733672456,0.002,4555.4,4555.0,0.4666]
[1759733672797,0.002,4555.4,4555.1,0.4666]
[1759733673783,0.1096,4555.2,4555.1,0.4666]
[1759733681003,0.1096,4555.2,4554.4,4.883]
[1759733681314,0.1096,4554.8,4554.4,4.883]
[1759733681494,0.1096,4554.8,4554.4,2.483]
[1759733681693,0.1096,4554.8,4554.5,0.4632]
[1759733682263,0.1096,4554.8,4554.6,0.4632]
[1759733683901,0.1096,4554.8,4554.7,0.4632]
[1759733688278,0.1096,4554.8,4554.7,3.20745026]
[1759733688509,0.002,4555.4,4555.2,2.19525047]
[1759733688871,0.1096,4555.3,4555.2,2.19525047]
[1759733689074,0.002,4555.4,4555.3,12.19524509]
[1759733689272,0.002,4555.4,4555.3,34.90350889]
[1759733689583,0.002,4555.4,4555.3,37.5352007]
[1759733693710,0.002,4555.4,4555.3,40.0192007]
[1759733698108,0.002,4555.4,4555.3,39.2467369]
[1759733698424,0.002,4555.4,4555.3,39.7099369]
[1759733698919,0.00059198,4555.4,4555.3,39.7099369]
[1759733700636,0.00059198,4555.4,4555.3,40.0182007]
[1759733703722,0.00059198,4555.4,4555.3,31.1992007]
[1759733703926,0.00059198,4555.4,4555.3,40.0182007]
[1759733704329,0.00059198,4555.4,4555.3,29.6582007]
[1759733704506,0.00059198,4555.4,4555.3,30.0822007]
[1759733704700,0.00059198,4555.4,4555.3,27.8112007]
[1759733704913,0.00059198,4555.4,4555.3,21.2377369]
[1759733705122,0.00059198,4555.4,4555.3,39.2467369]
[1759733707033,0.00059198,4555.4,4555.3,9.2467369]
[1759733707232,0.00059198,4555.4,4555.3,37.07824509]
[1759733707412,0.00059198,4555.4,4555.3,16.029]
[1759733707611,0.00059198,4555.4,4555.3,5.054]
[1759733707931,0.00059198,4555.4,4555.3,7.257]
[1759733708115,0.00059198,4555.4,4555.3,11.065]
[1759733708311,0.00059198,4555.4,4555.3,14.62806054]
[1759733708510,0.00059198,4555.4,4555.3,12.14506054]
[1759733708712,0.00059198,4555.4,4555.3,14.62806054]
[1759733709112,0.00059198,4555.4,4555.3,38.44606054]
[1759733710004,0.00059198,4555.4,4555.3,8.44606054]
[1759733710435,0.00059198,4555.4,4555.3,38.44606054]
[1759733710741,0.00059198,4555.4,4555.3,38.44506054]
[1759733710940,0.00059198,4555.4,4555.3,38.75332434]
[1759733711114,0.00059198,4555.4,4555.3,39.21252434]
[1759733711515,0.00059198,4555.4,4555.3,36.73052434]
[1759733711835,0.00059198,4555.4,4555.3,39.21252434]
[1759733712413,0.00059198,4555.4,4555.3,38.75332434]
[1759733712613,0.00059198,4555.4,4555.3,39.32212434]
[1759733714415,0.00059198,4555.4,4555.3,39.43172434]
[1759733717420,0.00059198,4555.4,4555.3,38.97252434]
[1759733717841,0.00059198,4555.4,4555.3,39.43172434]
[1759733718355,0.00059198,4555.4,4555.3,10.16241545]
[1759733718522,0.00059198,4555.4,4555.3,10.88024509]
[1759733719061,0.00059198,4555.4,4555.3,23.186]
[1759733719220,0.00059198,4555.4,4555.3,51.57824509]
[1759733719919,0.00059198,4555.4,4555.3,28.77924509]
[1759733720145,0.00059198,4555.4,4555.3,51.57824509]
[1759733720347,0.00059198,4555.4,4555.3,52.37486878]
[1759733721160,0.00059198,4555.4,4555.3,52.37386878]
[1759733723854,0.00059198,4555.4,4555.3,29.21262369]
[1759733724033,0.00059198,4555.4,4555.3,27.72262369]
[1759733724227,0.00059198,4555.4,4555.3,30.55062369]
[1759733724534,0.00059198,4555.4,4555.3,28.35862369]
[1759733724865,0.00059198,4555.4,4555.3,30.55386878]
[1759733725346,0.00059198,4555.4,4555.3,32.53086878]
[1759733725539,0.00059198,4555.4,4555.3,27.85362369]
[1759733725744,0.00059198,4555.4,4555.3,28.57062369]
[1759733726057,0.00059198,4555.4,4555.3,30.76586878]
[1759733726244,0.00059198,4555.4,4555.3,44.85586878]
[1759733726647,0.00059198,4555.4,4555.3,34.53886878]
[1759733726864,0.00059198,4555.4,4555.3,31.42186878]
[1759733727060,0.00059198,4555.4,4555.3,33.90386878]
[1759733727368,0.00059198,4555.4,4555.3,31.58886878]
[1759733727567,0.00059198,4555.4,4555.3,31.07086878]
[1759733728244,0.00059198,4555.4,4555.3,44.66186878]
[1759733728571,0.00059198,4555.4,4555.3,44.18786878]
[1759733729433,0.00059198,4555.4,4555.3,52.37486878]
[1759733729677,0.00059198,4555.4,4555.3,39.45986878]
[1759733730258,0.00059198,4555.4,4555.3,39.10286878]
[1759733730575,0.00059198,4555.4,4555.3,52.37486878]
[1759733730977,0.00059198,4555.4,4555.3,50.26086878]
[1759733731360,0.00059198,4555.4,4555.3,22.37486878]
[1759733731566,0.00059198,4555.4,4555.3,33.96186878]
[1759733732359,0.00059198,4555.4,4555.3,52.37486878]
[1759733733242,0.00059198,4555.4,4555.3,54.67125899]
[1759733733448,0.00059198,4555.4,4555.3,54.78085899]
[1759733733680,0.00059198,4555.4,4555.3,55.23665899]
[1759733736378,0.00059198,4555.4,4555.3,52.75465899]
[1759733736561,0.00059198,4555.4,4555.3,55.23665899]
[1759733737665,0.00059198,4555.4,4555.3,53.91065899]
[1759733737989,0.00059198,4555.4,4555.3,43.63965899]
[1759733738381,0.00059198,4555.4,4555.3,41.15765899]
[1759733738686,0.00059198,4555.4,4555.3,55.23665899]
[1759733743294,0.00059198,4555.4,4555.3,50.1232139]
[1759733743495,0.00059198,4555.4,4555.3,20.7738]
[1759733743496,0.46899198,4555.4,4555.3,20.7738]
[1759733743701,0.46899198,4555.4,4555.3,23.2558]
[1759733743894,0.00059198,4555.4,4555.3,22.96904509]
[1759733744411,0.00059198,4555.4,4555.3,25.45104509]
[1759733744610,0.00059198,4555.4,4555.3,22.96904509]
[1759733744907,0.00059198,4555.4,4555.3,25.75930889]
[1759733745100,0.00059198,4555.4,4555.3,27.9278007]
[1759733745596,0.00059198,4555.4,4555.3,25.4458007]
[1759733745798,0.00059198,4555.4,4555.3,27.9278007]
[1759733746697,0.00059198,4555.4,4555.3,25.4458007]
[1759733747013,0.00059198,4555.4,4555.3,27.9278007]
[1759733747703,0.00059198,4555.4,4555.3,25.4458007]
[1759733747910,0.46899198,4555.4,4555.3,20.318]
[1759733748243,0.46899198,4555.4,4555.3,22.472]
[1759733748380,0.46899198,4555.4,4555.3,24.66724509]
[1759733748779,0.00059198,4555.4,4555.3,24.66724509]
[1759733749007,0.00059198,4555.4,4555.3,26.45255013]
[1759733749992,0.00059198,4555.4,4555.3,26.76081393]
[1759733752037,0.00059198,4555.4,4555.3,27.20991393]
[1759733752850,0.00059198,4555.4,4555.3,27.31951393]
[1759733753050,0.00059198,4555.4,4555.3,26.87041393]
[1759733753422,0.00059198,4555.4,4555.3,24.38841393]
[1759733753746,0.00059198,4555.4,4555.3,26.87041393]
[1759733754938,0.46899198,4555.4,4555.3,21.99610889]
[1759733756166,0.46899198,4555.4,4555.3,19.383]
[1759733756941,0.46899198,4555.4,4555.3,21.57824509]
[1759733759967,0.46899198,4555.4,4555.3,19.383]
[1759733760262,0.57859198,4555.4,4555.3,7.07824509]
[1759733760562,0.57859198,4555.4,4555.3,21.57824509]
[1759733760726,0.11019198,4555.4,4555.3,21.57824509]
[1759733761166,0.57859198,4555.4,4555.3,21.57824509]
[1759733761866,0.57859198,4555.4,4555.3,7.07824509]
[1759733763350,0.11019198,4555.4,4555.3,7.07824509]
[1759733765854,0.11019198,4555.4,4555.3,21.57824509]
[1759733766047,0.00059198,4555.4,4555.3,23.10187127]
[1759733766452,0.00059198,4555.4,4555.3,20.90662618]
[1759733766653,0.00059198,4555.4,4555.3,22.64607127]
[1759733766827,0.00059198,4555.4,4555.3,19.8008638]
[1759733767029,0.00059198,4555.4,4555.3,21.99610889]
[1759733767555,0.00059198,4555.4,4555.3,22.45190889]
[1759733767755,0.00059198,4555.4,4555.3,21.99610889]
[1759733768757,0.00059198,4555.4,4555.3,7.49610889]
[1759733769054,0.00059198,4555.4,4555.3,4.883]
[1759733769255,0.00059198,4555.4,4555.3,19.383]
[1759733770153,0.00059198,4555.4,4555.3,16.901]
[1759733770343,0.00059198,4555.4,4555.3,19.383]
[1759733770550,0.00059198,4555.4,4555.3,22.99608775]
[1759733770769,0.4307,4557.8,4555.3,22.99608775]
[1759733770770,0.58809335,4558.4,4556.3,2.19476329]
[1759733770972,0.4307,4558.3,4556.4,2.19471512]
[1759733771175,0.2055018,4558.2,4556.9,3.76392566]
[1759733771351,0.4327,4558.1,4557.0,47.3668001]
[1759733771674,0.4327,4558.1,4557.1,32.482]
[1759733771675,0.4307,4558.0,4557.1,32.482]
[1759733771875,0.4307,4558.0,4557.2,30.0]
[1759733772082,0.4307,4558.0,4557.3,2.482]
[1759733772285,0.4307,4558.0,4557.4,16.982]
[1759733772592,0.4307,4558.0,4557.4,14.5]
[1759733772886,0.4307,4558.0,4557.5,2.482]
[1759733773557,0.002,4558.1,4557.4,14.5]
[1759733773558,0.002,4558.1,4557.6,2.482]
[1759733773753,0.4307,4557.9,4557.6,2.482]
[1759733774559,0.4307,4557.9,4557.4,14.5]
[1759733774767,0.4307,4557.9,4557.5,2.482]
[1759733776593,0.4307,4557.9,4557.4,14.5]
[1759733776760,0.4307,4557.9,4557.5,2.482]
[1759733776956,0.002,4558.1,4557.5,2.482]
[1759733777174,2.62467313,4558.0,4557.4,14.5]
[1759733777376,2.19413809,4557.6,4557.1,2.482]
[1759733777578,0.69336731,4557.9,4557.0,2.482]
[1759733777579,0.4307,4557.5,4557.0,2.482]
[1759733777779,0.4307,4557.4,4557.1,14.5]
[1759733778886,2.19424591,4557.4,4557.1,14.5]
[1759733779060,0.4307,4557.3,4557.1,14.5]
[1759733779261,0.4307,4557.2,4556.9,2.481]
[1759733779783,0.4307,4557.2,4556.9,16.981]
[1759733780288,0.002,4557.4,4557.0,2.4]
[1759733780496,0.4327,4557.4,4557.0,2.4]
[1759733780793,0.1096,4557.1,4557.0,2.4]
[1759733782665,0.1096,4557.1,4557.0,2.8558]
[1759733782859,0.1096,4557.1,4557.0,3.60892323]
[1759733783067,0.1096,4557.1,4557.0,8.28434938]
[1759733783260,0.1096,4557.1,4557.0,20.58992323]
[1759733783463,0.002,4557.4,4557.0,50.94693703]
[1759733783788,0.002,4557.4,4557.3,2.1942817]
[1759733783965,0.002,4557.4,4557.3,7.22273012]
[1759733784165,0.002,4557.4,4557.3,7.65658731]
[1759733784871,0.002,4557.4,4557.3,10.05658731]
[1759733785602,0.002,4557.4,4557.3,40.05658731]
[1759733785772,0.002,4557.4,4557.3,37.65658731]
[1759733786384,0.002,4557.4,4557.3,31.39730561]
[1759733786584,0.002,4557.4,4557.3,30.94330561]
[1759733786802,0.002,4557.4,4557.3,47.63758731]
[1759733787197,0.002,4557.4,4557.3,52.15658731]
[1759733787490,0.002,4557.4,4557.3,16.66849181]
[1759733787691,0.002,4557.4,4557.3,16.981]
[1759733788008,0.002,4557.4,4557.3,14.5]
[1759733788176,0.002,4557.4,4557.3,16.981]
[1759733788978,0.002,4557.4,4557.3,14.5]
[1759733789279,0.002,4557.4,4557.3,16.981]
[1759733789678,0.002,4557.4,4557.3,51.35128782]
[1759733789905,0.002,4557.4,4557.3,19.61280612]
[1759733790299,0.002,4557.4,4557.3,17.7938138]
[1759733791284,0.002,4557.4,4557.3,49.9880955]
[1759733792186,0.002,4557.4,4557.3,50.0976955]
[1759733793186,0.002,4557.4,4557.3,20.0976955]
[1759733793688,0.002,4557.4,4557.3,50.0976955]
[1759733794007,0.002,4557.4,4557.3,52.26618731]
[1759733796892,0.002,4557.4,4557.3,25.07538731]
[1759733797093,0.002,4557.4,4557.3,51.81038731]
[1759733797398,0.002,4557.4,4557.3,52.26028731]
[1759733801089,0.002,4557.4,4557.3,53.82974677]
[1759733801290,0.002,4557.4,4557.3,52.26028731]
[1759733801889,0.002,4557.4,4557.3,53.82974677]
[1759733802290,0.002,4557.4,4557.3,52.26028731]
[1759733803309,0.002,4557.4,4557.3,47.58500561]
[1759733803489,0.002,4557.4,4557.3,33.68510561]
[1759733803690,0.002,4557.4,4557.3,33.61110561]
[1759733804219,0.002,4557.4,4557.3,36.25528731]
[1759733804409,0.002,4557.4,4557.3,37.82474677]
[1759733804634,0.002,4557.4,4557.3,53.82974677]
[1759733804996,0.002,4557.4,4557.3,51.81038731]
[1759733805218,0.002,4557.4,4557.3,53.82974677]
[1759733805421,0.002,4557.4,4557.3,52.26028731]
[1759733805606,0.002,4557.4,4557.3,22.26028731]
[1759733805814,0.002,4557.4,4557.3,52.26028731]
[1759733806702,0.002,4557.4,4557.3,53.82974677]
[1759733808212,0.002,4557.4,4557.3,48.70456507]
[1759733808424,0.002,4557.4,4557.3,51.80938731]
[1759733808629,0.002,4557.4,4557.3,52.25928731]
[1759733808825,0.002,4557.4,4557.3,35.76310561]
[1759733809308,0.002,4557.4,4557.3,36.49038731]
[1759733809834,0.002,4557.4,4557.3,51.80938731]
[1759733810133,0.002,4557.4,4557.3,37.15038731]
[1759733811047,0.002,4557.4,4557.3,51.80938731]
[1759733811223,0.002,4557.4,4557.3,52.25928731]
[1759733812421,0.002,4557.4,4557.3,56.22874677]
[1759733813843,0.002,4557.4,4557.3,26.22874677]
[1759733814221,0.002,4557.4,4557.3,56.22874677]
[1759733814424,0.002,4557.4,4557.3,54.65928731]
[1759733815978,0.002,4557.4,4557.3,54.20938731]
[1759733816265,0.002,4557.4,4557.3,54.0343056]
[1759733816760,0.002,4557.4,4557.3,53.5844056]
[1759733819068,0.002,4557.4,4557.3,55.7786873]
[1759733819251,0.002,4557.4,4557.3,53.5844056]
[1759733819564,0.002,4557.4,4557.3,53.58458669]
[1759733819931,0.002,4557.4,4557.3,52.25958669]
[1759733820133,0.002,4557.4,4557.3,53.58458669]
[1759733820444,0.002,4557.4,4557.3,42.80758669]
[1759733820759,0.002,4557.4,4557.3,36.67058669]
[1759733820933,0.002,4557.4,4557.3,33.18258669]
[1759733821258,0.002,4557.4,4557.3,53.58458669]
[1759733821435,0.002,4557.4,4557.3,54.20938731]
[1759733821633,0.4376,4557.4,4557.3,54.20938731]
[1759733821952,0.002,4557.4,4557.3,54.20938731]
[1759733822143,0.002,4557.4,4557.3,52.01510561]
[1759733823955,0.002,4557.4,4557.3,54.20938731]
[1759733824331,0.002,4557.4,4557.3,52.01510561]
[1759733825146,0.002,4557.4,4557.3,54.20938731]
[1759733826770,0.002,4557.4,4557.3,52.01510561]
[1759733829357,0.4392,4557.4,4557.3,52.01510561]
[1759733829563,0.002,4557.4,4557.3,54.20938731]
[1759733830054,0.002,4557.4,4557.3,52.01510561]
[1759733830848,0.002,4557.4,4557.3,54.20938731]
[1759733832074,0.002,4557.4,4557.3,54.66538731]
[1759733833646,0.002,4557.4,4557.3,54.20938731]